[Event "Azerbaijan-ch 1st League 2025"]
[Site "Baku"]
[Date "2025.01.09"]
[Round "4.10"]
[White "Isfandiyarli, Kamal"]
[Black "Alizada, Pasham"]
[Result "1/2-1/2"]
[Annotator "TA"]
[ECO "D00"]
[WhiteElo "2027"]
[BlackElo "2117"]
[PlyCount "167"]
[EventDate "2025.01.05"]
[EventType "swiss"]
[EventCountry "AZE"]
[SourceTitle "playchess.com"]
[Source "ChessBase"]
[SourceQuality "1"]
[TimeControl "40/5400+30:1800+30"]

{[%evp 59,167,-39,-6,-39,-39,-61,-46,-46,-46,-46,-46,-46,-46,-46,-46,-46,-46,-54,-54,-54,-54,-54,-54,-54,-30,-31,-29,-25,-31,-28,-22,-71,-76,-107,-112,-95,-6,-34,-34,-56,-60,-172,-135,-177,-184,-184,-179,-182,-114,-114,-114,-114,-86,-79,-27,-56,-56,-60,-23,-69,-16,-16,-7,-8,0,0,0,0,3,0,0,0,4,0,254,262,575,556,935,781,773,773,935,775,935,916,923,137,143,143,143,144,144,144,144,8,7,0,0,0,0,0,0,0,0,0,0,0,0,0]} 1. d4 {[%emt 0:04:21]} Nf6 {[%emt 0:00:12]} 2. Bf4 {[%emt 0:00:47]} d5 {[%emt 0:00:12]} 3. e3 {[%emt 0:00:50]} c5 {[%emt 0:00:03]} 4. c3 {[%emt 0:01:08]} Nc6 {[%emt 0:01:28]} 5. Nd2 {[%emt 0:01:42]} g6 {[%emt 0:05:26]} 6. Ngf3 {[%emt 0:02:02]} Bg7 {[%emt 0:01:21]} 7. Bb5 {[%emt 0:06:09]} Qb6 {[%emt 0:02:24]} 8. Bxc6+ {[%emt 0:00:57]} bxc6 {[%emt 0:02:04]} 9. Qb3 {[%emt 0:10:20]} c4 {[%emt 0:16:09]} 10. Qxb6 {[%emt 0:05:35]} axb6 {[%emt 0:00:02]} 11. Be5 {[%emt 0:06:38]} Bf5 {[%emt 0:02:18]} 12. O-O {[%emt 0:04:20]} O-O {[%emt 0:05:14]} 13. Rfe1 {[%emt 0:02:20]} Ne4 {[%emt 0:04:52]} 14. Bxg7 {[%emt 0:03:30]} Kxg7 {[%emt 0:00:07]} 15. Nxe4 {[%emt 0:00:07]} Bxe4 {[%emt 0:00:04]} 16. Ne5 {[%emt 0:04:42]} Rfc8 {[%emt 0:06:55]} 17. f3 {[%emt 0:00:07]} Bf5 {[%emt 0:05:04]} 18. e4 {[%emt 0:00:14]} Be6 {[%emt 0:00:10]} 19. exd5 {[%emt 0:02:23]} cxd5 {[%emt 0:02:31]} 20. a3 {[%emt 0:00:09]} Rc7 {[%emt 0:01:00]} 21. Re3 {[%emt 0:03:32]} h5 {[%emt 0:09:37]} 22. Kf2 {[%emt 0:01:59]} Bc8 {[%emt 0:03:06]} 23. f4 {[%emt 0:00:18]} Bf5 {[%emt 0:03:20]} 24. Nf3 {[%emt 0:02:25]} f6 {[%emt 0:00:37]} 25. Rae1 {[%emt 0:07:27]} Kf7 {[%emt 0:00:05]} 26. g3 {[%emt 0:01:15]} Bd3 {[%emt 0:03:31]} 27. Rd1 {[%emt 0:01:25]} Bf5 {[%emt 0:00:40]} 28. Rde1 {[%emt 0:01:31]} Ra5 {[%emt 0:00:24]} 29. R3e2 {[%emt 0:00:37]} Rca7 {[%emt 0:00:38]} 30. Rd2 {[%emt 0:00:20]} Rb5 {[%emt 0:00:08]} 31. Ng1 {[%emt 0:00:16]} Raa5 {[%emt 0:01:46]} 32. Ne2 {[%emt 0:00:10]} Be4 {[%emt 0:00:45]} 33. Nc1 {[%emt 0:01:53]} Ra8 {[%emt 0:00:47]} 34. h4 {[%emt 0:01:06]} Ke6 {[%emt 0:03:02]} 35. Na2 {[%emt 0:00:41]} Kd6 {[%emt 0:00:49]} 36. Nb4 {[%emt 0:00:47]} Rf8 {[%emt 0:02:19]} 37. Kg1 {[%emt 0:01:06]} Rg8 {[%emt 0:00:46]} 38. Kh2 {[%emt 0:01:26]} Ra5 {[%emt 0:01:45]} 39. Nc2 {[%emt 0:00:13]} Raa8 {[%emt 0:04:42]} 40. Ne3 {[%emt 0:00:00]} Rac8 {[%emt 0:00:00]} 41. Nd1 {[%emt 0:02:51]} g5 {[%emt 0:06:47]} 42. fxg5 {[%emt 0:06:08]} fxg5 {[%emt 0:00:08]} 43. hxg5 {[%emt 0:00:09]} Rxg5 {[%emt 0:01:33]} 44. Nf2 {[%emt 0:00:08]} Bf5 {[%emt 0:08:22]} 45. Nh3 {[%emt 0:02:48]} (45. Nd1 $11) 45... Rg4 $17 {[%emt 0:01:19]} 46. Rf2 {[%emt 0:00:08]} e6 {[%emt 0:00:53]} 47. Rf4 {[%emt 0:00:15]} Rg6 {[%emt 0:00:40]} (47... Rcg8 $17 48. Rxg4 hxg4) 48. Re3 {[%emt 0:01:47]} Rf8 {[%emt 0:03:54]} 49. Ng1 {[%emt 0:03:43]} Rfg8 {[%emt 0:03:57]} 50. Kg2 {[%emt 0:02:27]} ({White should play} 50. Rh4 $15) 50... Rg4 {[%emt 0:02:23]} 51. Rxg4 {[%emt 0:00:32]} hxg4 {[%emt 0:00:40]} 52. Re1 {[%emt 0:04:01]} Rh8 {[%emt 0:01:24]} 53. Ne2 {[%emt 0:00:19]} Be4+ {[%emt 0:00:06]} (53... b5 $19 54. Kf2 Rh3) 54. Kf2 $17 {[%emt 0:00:04]} Rh2+ {[%emt 0:01:29]} 55. Ke3 {[%emt 0:00:12]} b5 {[%emt 0:05:53]} 56. Rf1 {[%emt 0:07:14]} Bd3 {[%emt 0:01:27]} (56... Bf3 $17 57. Ng1 Rxb2 58. Nxf3 gxf3 59. Rxf3 Rb3) 57. Rf2 $11 {[%emt 0:01:09]} Rh1 {[%emt 0:00:10]} 58. Nf4 {[%emt 0:01:25]} Be4 {[%emt 0:00:37]} 59. Kd2 {[%emt 0:02:08]} (59. Rd2 $11) 59... Rb1 {[%emt 0:01:22]} (59... Rg1 $1 $15 60. Nh5 Bf3) 60. Ke3 $11 {[%emt 0:00:06]} Rg1 {[%emt 0:00:14]} 61. Nh5 $1 {[%emt 0:01:20]} Bg6 {[%emt 0:00:53]} 62. Nf6 {[%emt 0:00:22]} Bf5 {[%emt 0:01:24]} 63. Kf4 {[%emt 0:01:04]} Re1 {[%emt 0:00:03]} 64. Kg5 {[%emt 0:00:13]} Re3 {[%emt 0:01:01]} 65. Kf4 {[%emt 0:01:03]} Re1 {[%emt 0:00:02]} 66. Kg5 {[%emt 0:00:07]} Kc6 $2 {[%emt 0:01:16][%mdl 8192]} (66... Re3 $11) 67. Nxg4 $18 {[%emt 0:00:51]} Kb6 $2 {[%emt 0:01:02]} (67... Bxg4 {is more resistant.} 68. Kxg4 Kd6) 68. Ne5 $18 {[%emt 0:01:04]} Ka5 {[%emt 0:02:49]} 69. g4 {[%emt 0:02:06]} Rg1 {[%emt 0:00:32]} 70. Kf6 {[%emt 0:00:54]} Bxg4 {[%emt 0:00:44]} 71. Nxg4 {[%emt 0:00:06]} Rxg4 {[%emt 0:00:02]} 72. Kxe6 {[%emt 0:00:08]} Rg5 {[%emt 0:00:07]} 73. Kd6 $2 {[%emt 0:00:29]} (73. Rf8 $18 {is more deadly.} Rg2 74. Kxd5 Rxb2 75. Kc5) 73... Ka4 $16 {[%emt 0:00:24]} 74. Kc5 {[%emt 0:00:09]} Rh5 {[%emt 0:00:24]} 75. Re2 {[%emt 0:01:09]} Rg5 {[%emt 0:00:18]} 76. Kc6 {[%emt 0:00:57]} Rh5 {[%emt 0:00:41]} 77. Re5 {[%emt 0:01:07]} (77. Rg2 $16) 77... Rh2 $11 {[%emt 0:00:03]} 78. Rxd5 {[%emt 0:00:32]} Rxb2 {[%emt 0:00:02]} 79. Re5 {[%emt 0:11:27]} (79. Rc5 $5 Rb3 $8 80. d5 Rxc3 81. Rxb5 Rxa3 82. Rb8 $11) 79... Rb3 {[%emt 0:01:52]} 80. d5 {[%emt 0:06:57]} Rxc3 {[%emt 0:01:01]} 81. d6 {[%emt 0:00:29]} Rd3 $1 {[%emt 0:00:02]} 82. d7 {[%emt 0:00:35]} (82. Rxb5 $2 Rxd6+ (82... Rxa3 $2 83. d7 $18) 83. Kc5 c3 $19) 82... c3 {[%emt 0:00:47]} 83. Kc7 {[%emt 0:02:34]} (83. Rxb5 $2 Rxd7 (83... Kxa3 84. Rc5 $11) 84. Rb4+ Kxa3 $19) 83... Kxa3 {[%emt 0:01:17]} 84. Rxb5 {[%emt 0:00:07]} (84. d8=R $2 {loses.} Rxd8 85. Rxb5 Rd4 $19) 1/2-1/2

[Event "Azerbaijan-ch 1st League 2025"]
[Site "Baku"]
[Date "2025.01.09"]
[Round "4.11"]
[White "Rzayev, Chingiz"]
[Black "Halafov, Ilgar"]
[Result "1-0"]
[Annotator "TA"]
[ECO "A45"]
[WhiteElo "2153"]
[BlackElo "1990"]
[PlyCount "101"]
[EventDate "2025.01.05"]
[EventType "swiss"]
[EventCountry "AZE"]
[SourceTitle "playchess.com"]
[Source "ChessBase"]
[SourceQuality "1"]
[TimeControl "40/5400+30:1800+30"]

{[%evp 9,101,-31,-21,-31,-25,-30,-33,-59,-51,-58,-3,-13,-4,-26,-25,-28,-17,-36,-31,-47,-45,-47,-33,-91,-89,-97,-85,-126,-40,-30,-3,-4,-3,-6,55,0,0,0,31,0,0,0,0,0,77,91,77,82,91,98,92,20,26,45,35,37,136,137,152,158,216,219,216,214,264,263,249,210,443,395,459,469,614,584,652,642,633,538,494,485,1156,1156,1050,986,608,476,1553,1524,1741,1633,2312,2227,2533,1648]} 1. d4 {[%emt 0:00:04]} Nf6 {[%emt 0:00:08]} 2. Bg5 {[%emt 0:00:04]} c5 {[%emt 0:03:06]} 3. Bxf6 {[%emt 0:00:13]} exf6 {[%emt 0:00:14]} 4. d5 {[%emt 0:00:43]} d6 {[%emt 0:01:50]} 5. e3 {[%emt 0:02:11]} g6 {[%emt 0:00:20]} 6. Nd2 {[%emt 0:03:42]} Bg7 {[%emt 0:01:23]} 7. Ngf3 {[%emt 0:00:15]} O-O {[%emt 0:00:28]} 8. Be2 {[%emt 0:00:39]} Nd7 {[%emt 0:03:06]} 9. O-O {[%emt 0:00:26]} Ne5 {[%emt 0:00:17]} (9... f5 $15) 10. a4 {[%emt 0:00:37]} Qc7 {[%emt 0:07:09]} 11. Ne1 {[%emt 0:00:38]} f5 {[%emt 0:00:20]} 12. c3 {[%emt 0:03:14]} Re8 {[%emt 0:02:04]} 13. h3 {[%emt 0:06:59]} Rb8 {[%emt 0:00:24]} 14. Nc2 {[%emt 0:02:28]} b6 {[%emt 0:02:53]} 15. Bb5 {[%emt 0:03:44]} Re7 {[%emt 0:02:59]} 16. f4 {[%emt 0:06:25]} (16. Nc4 $15) 16... Nd7 $17 {[%emt 0:01:26]} 17. Qf3 {[%emt 0:15:36]} Nf6 {[%emt 0:04:34] Inhibits e4.} 18. Rfe1 {[%emt 0:02:56]} Ne4 {[%emt 0:09:19]} (18... Bb7 $17 19. Bc4 a6) 19. Nxe4 $15 {[%emt 0:01:31]} fxe4 {[%emt 0:00:22]} 20. Qe2 {[%emt 0:00:17]} f5 {[%emt 0:02:31]} 21. Na3 {[%emt 0:00:07]} Bd7 {[%emt 0:05:46]} ({Black should play} 21... Bf6 $11) 22. Bxd7 {[%emt 0:01:55]} (22. a5 $14) 22... Qxd7 $11 {[%emt 0:00:49]} 23. Qb5 {[%emt 0:01:46]} Qb7 {[%emt 0:07:24][%cal Og7f8]} 24. a5 {[%emt 0:03:59]} Qxd5 {[%emt 0:06:59]} 25. Red1 {[%emt 0:00:25][%cal Be1d1,Bd1d5,Bd5c5][%mdl 32]} Qe6 {[%emt 0:00:22]} 26. Qc6 $1 {[%emt 0:00:45] Prevents d5} d5 {[%emt 0:08:18]} (26... Rd7 $11 {remains equal.}) 27. Qxe6+ {[%emt 0:00:40]} Rxe6 {[%emt 0:00:07]} 28. Rxd5 {[%emt 0:00:08]} b5 {[%emt 0:15:33]} 29. Rxc5 {[%emt 0:00:36]} b4 {[%emt 0:00:06]} 30. Nb5 {[%emt 0:01:18]} ({White should play} 30. cxb4 $16 {Black must now prevent b5.} Bxb2 31. Ra2 Rxb4 32. Rc8+ Kf7 33. Nc4) 30... bxc3 {[%emt 0:00:09]} 31. bxc3 {[%emt 0:00:09]} Bf8 {[%emt 0:04:22]} 32. Rd5 {[%emt 0:01:01]} Rc6 {[%emt 0:00:10]} (32... a6 $1 $14 33. Nd4 Rd6) 33. Nxa7 $16 {[%emt 0:08:28]} Rxc3 {[%emt 0:00:02][%cal Of8c5] Strongly threatening ...Bc5!.} 34. Nb5 $36 {[%emt 0:00:35][%mdl 2048] White is in control.} Rc5 {[%emt 0:01:54] [#]} (34... Rxe3 $16 35. a6 Rd3) 35. Rxc5 $1 $18 {[%emt 0:00:10]} Bxc5 {[%emt 0:00:02][%mdl 4096] Endgame KRB-KRN. White is a pawn up.} 36. Nd4 {[%emt 0:00:12]} Ra8 {[%emt 0:04:53]} 37. a6 {[%emt 0:00:16]} Kf7 {[%emt 0:00:15]} 38. Kf2 {[%emt 0:00:32]} Bxd4 $2 {[%emt 0:02:45]} (38... h5 {is a better defense.} 39. Nb5 g5) 39. exd4 {[%emt 0:00:06] KR-KR. White is a pawn up.} Ke6 {[%emt 0:00:19]} 40. g4 {[%emt 0:00:00]} Ra7 {[%emt 0:00:00]} 41. Ke3 {[%emt 0:00:23]} Kd6 {[%emt 0:07:11]} 42. gxf5 {[%emt 0:00:08]} gxf5 {[%emt 0:00:02]} 43. Ra5 {[%emt 0:00:11]} Ke6 {[%emt 0:00:06]} 44. h4 {[%emt 0:00:11][%cal Bh3h4,Bh4h5][%mdl 32]} Kf6 {[%emt 0:01:00]} (44... h5 $142 45. d5+ (45. Re5+ Kf6 $18) 45... Kd7) 45. h5 {[%emt 0:00:12]} Ke6 {[%emt 0:01:40]} 46. d5+ {[%emt 0:02:27]} Kd6 {[%emt 0:06:13]} 47. Kd4 {[%emt 0:00:12]} h6 {[%emt 0:01:15]} (47... Kd7 $142 48. Ra2 (48. Ke5 e3 $18) 48... Kd6) 48. Ra3 {[%emt 0:00:08]} Kc7 {[%emt 0:00:38]} 49. Ke5 {[%emt 0:01:27]} e3 {[%emt 0:00:42]} 50. Rxe3 {[%emt 0:00:18]} Rxa6 {[%emt 0:00:01]} 51. Rg3 {[%emt 0:00:16]} 1-0

[Event "Azerbaijan-ch 1st League 2025"]
[Site "Baku"]
[Date "2025.01.09"]
[Round "4.12"]
[White "Baghirov, Orkhan"]
[Black "Garayev, Kanan"]
[Result "0-1"]
[Annotator "TA"]
[ECO "E01"]
[WhiteElo "1989"]
[BlackElo "2340"]
[PlyCount "111"]
[EventDate "2025.01.05"]
[EventType "swiss"]
[EventCountry "AZE"]
[SourceTitle "playchess.com"]
[Source "ChessBase"]
[SourceQuality "1"]
[TimeControl "40/5400+30:1800+30"]

{[%evp 11,111,12,10,25,20,19,43,39,47,17,17,22,56,51,71,86,102,80,91,62,87,72,180,100,104,116,113,107,162,140,137,147,185,185,212,185,290,286,157,29,24,33,55,23,22,20,31,23,20,23,28,3,8,0,0,0,3,2,2,8,14,0,-5,-78,-10,-10,8,-40,-12,-29,-26,-38,-62,-98,-93,-91,-43,-60,-77,-236,0,0,0,-564,-439,-562,-546,-343,-82,-4631,-5081,-29963,-29961,-29937,-5632,-29972,-29973,-29973,-29974,-29979,-29979,-29986]} 1. d4 {[%emt 0:00:07]} d5 {[%emt 0:02:17]} 2. c4 {[%emt 0:00:11]} e6 {[%emt 0:00:18]} 3. Nf3 {[%emt 0:00:07]} Nf6 {[%emt 0:00:48]} 4. g3 {[%emt 0:00:16]} Bb4+ {[%emt 0:02:02]} 5. Nbd2 {[%emt 0:00:15]} O-O {[%emt 0:02:12]} 6. Bg2 {[%emt 0:00:07]} c5 {[%emt 0:00:55]} 7. a3 {[%emt 0:01:04]} Bxd2+ $1 {[%emt 0:00:15]} 8. Qxd2 {[%emt 0:00:02]} Ne4 {[%emt 0:00:55]} 9. Qc2 {[%emt 0:14:58]} Nc6 {[%emt 0:05:51]} 10. O-O {[%emt 0:12:41] and dxc5 should not be overlooked} cxd4 {[%emt 0:00:49]} 11. b4 {[%emt 0:03:45]} a6 {[%emt 0:05:42]} 12. Bb2 {[%emt 0:06:33]} Nc3 {[%emt 0:07:03]} 13. Bxc3 {[%emt 0:03:55]} dxc3 {[%emt 0:00:05]} 14. Rfd1 {[%emt 0:05:30]} Ne7 {[%emt 0:19:15]} (14... d4 15. b5 Na5 (15... axb5 16. cxb5 Nb8 17. Nxd4 $18) 16. Rxd4 $16 (16. Nxd4 Qc7 $16)) 15. Rac1 {[%emt 0:07:38]} Bd7 {[%emt 0:03:49]} 16. Ne5 {[%emt 0:07:10][%cal Rc4d5]} (16. Qxc3 Ba4 $14) 16... Rc8 {[%emt 0:01:05]} (16... Be8 $16) 17. e4 {[%emt 0:00:58]} (17. Qxc3 Ba4 18. Rd2 f6 $11) (17. cxd5 $18 exd5 18. Bxd5) 17... Qc7 {[%emt 0:02:18]} 18. Nxd7 {[%emt 0:00:36]} (18. Qxc3 Ba4 19. Rd3 f6 $17) 18... Qxd7 {[%emt 0:00:01]} 19. Qxc3 {[%emt 0:00:24]} b5 {[%emt 0:08:26]} (19... Rxc4 $2 20. Qxc4 Rc8 21. Qd4 $18) (19... Rfd8 $16) 20. c5 $18 {[%emt 0:00:29]} (20. exd5 Rxc4 21. Qe5 Rxc1 22. Rxc1 Nxd5 $14) 20... Rfd8 {[%emt 0:00:12]} 21. exd5 {[%emt 0:00:37]} exd5 {[%emt 0:00:10]} 22. Rd3 {[%emt 0:02:38]} Qf5 {[%emt 0:04:36]} 23. Rcd1 {[%emt 0:07:04]} Rc7 {[%emt 0:00:18]} (23... Rc6 $142 24. Qd2 Rf6) 24. Qb3 {[%emt 0:02:31][%cal Rg2d5]} Rcd7 {[%emt 0:00:41] [#]} (24... Qc8 $18 25. Bxd5 Nxd5 26. Rxd5 Rcd7 27. Rxd7 Rxd7) 25. c6 {[%emt 0:08:25]} Nxc6 $11 {[%emt 0:04:01][%cal Be7c6,Bc6e5,Be5c4][%mdl 32]} 26. Rxd5 {[%emt 0:01:34]} (26. Bxd5 $2 Ne5 27. Rc3 Nc4 $19) 26... Ne5 {[%emt 0:07:27]} 27. f4 {[%emt 0:07:57]} (27. Rxd7 {simplifies} Rxd7 28. Rxd7 Nxd7 29. Bb7) 27... Nc4 $1 {[%emt 0:04:23][%cal Rd7d5]} 28. Qd3 {[%emt 0:03:12]} Qxd3 {[%emt 0:03:52]} 29. R1xd3 {[%emt 0:00:01]} Rd6 {[%emt 0:00:18]} 30. Rxd6 {[%emt 0:00:54]} Nxd6 {[%emt 0:00:01][%mdl 4096] Endgame KRB-KRN} 31. Bf1 {[%emt 0:01:01]} Kf8 {[%emt 0:00:24]} 32. Rd5 {[%emt 0:00:56]} Ke7 {[%emt 0:00:27]} 33. a4 {[%emt 0:01:23]} Rb8 {[%emt 0:01:13]} 34. Re5+ {[%emt 0:00:42]} Kd7 {[%emt 0:02:44]} 35. a5 {[%emt 0:00:36]} f5 {[%emt 0:13:07]} 36. Bd3 {[%emt 0:00:37]} g6 {[%emt 0:00:00]} 37. Rc5 {[%emt 0:01:01]} (37. Bc2 $11 {keeps the balance.}) 37... Re8 {[%emt 0:00:00]} (37... Rc8 $17 38. Rd5 Rc1+ 39. Kf2 Kc6) 38. Kf1 {[%emt 0:00:41]} Ne4 {[%emt 0:00:00]} 39. Rc2 {[%emt 0:00:31]} (39. Rxb5 $11 Nd2+ (39... axb5 40. Bxb5+ Kd8 41. Bxe8 $11) 40. Kf2 axb5 41. Bxb5+ Ke7 42. Bxe8 Kxe8 43. Ke3 Nc4+ 44. Kd4) 39... Kd6 {[%emt 0:00:00]} 40. Be2 {[%emt 0:00:00]} Kd5 {[%emt 0:00:00]} 41. Bf3 {[%emt 0:08:21]} Kd4 {[%emt 0:00:00]} 42. Bxe4 {[%emt 0:04:24]} Rxe4 $15 {[%emt 0:00:00] KR-KR} (42... fxe4 $6 43. Ke2 $11) 43. Rc6 {[%emt 0:01:40][%cal Of1f2]} Ke3 {[%emt 0:00:00]} (43... Kd5 $17 44. Rxa6 Re7) 44. Rxa6 {[%emt 0:04:45]} Rxb4 {[%emt 0:00:00]} 45. Rd6 $2 {[%emt 0:06:23] [#]} (45. Kg2 $17 {is a better defense.}) 45... Rb1+ $2 {[%emt 0:00:00]} ({Black should try} 45... Rb2 $1 $19 {[%cal Rb2h2]} 46. h3 Rf2+ 47. Kg1 Ra2) 46. Kg2 $11 {[%emt 0:00:11]} Rb2+ {[%emt 0:00:00]} 47. Kg1 $2 {[%emt 0:00:26][%mdl 8192]} (47. Kh3 $11 {and White is okay.}) 47... Ra2 {[%emt 0:00:00]} 48. a6 {[%emt 0:04:11]} b4 {[%emt 0:00:00]} 49. h3 {[%emt 0:04:09]} Ke2 $2 {[%emt 0:00:06]} (49... b3 50. Rb6 $11) (49... Ra3 $19 {has better winning chances. Hoping for ...b3.} 50. Rb6 Kf3) 50. Kg2 $2 {[%emt 0:00:33][%mdl 8192] [#]} (50. g4 $17) 50... b3 $1 $19 {[%emt 0:00:13]} ({Less strong is} 50... Ke3+ 51. Kg1 $15) 51. Rb6 {[%emt 0:01:14]} Kd3+ {[%emt 0:00:11]} (51... Ke3+ 52. Kf1 $11) 52. Kf3 {[%emt 0:00:01]} b2 {[%emt 0:01:15] ( -> ...Kc2)} 53. a7 {[%emt 0:00:34]} Kc2 {[%emt 0:00:10]} ({Not} 53... Rxa7 54. Rxb2 Ra3 55. Kf2 $11) 54. Rc6+ {[%emt 0:00:07]} Kb1 {[%emt 0:00:08]} 55. Rc7 {[%emt 0:01:22]} Ka1 {[%emt 0:00:07]} 56. Rc2 {[%emt 0:00:21]} 0-1

[Event "Azerbaijan-ch 1st League 2025"]
[Site "Baku"]
[Date "2025.01.09"]
[Round "4.13"]
[White "Alizada, Agshin"]
[Black "Azimov, Yasin"]
[Result "1-0"]
[Annotator "TA"]
[ECO "A13"]
[WhiteElo "2116"]
[BlackElo "1880"]
[PlyCount "65"]
[EventDate "2025.01.05"]
[EventType "swiss"]
[EventCountry "AZE"]
[SourceTitle "playchess.com"]
[Source "ChessBase"]
[SourceQuality "1"]
[TimeControl "40/5400+30:1800+30"]

{[%evp 9,65,29,40,0,34,-1,29,17,22,-19,9,0,0,0,0,0,0,0,0,0,2,2,0,5,0,0,0,0,0,0,65,71,68,41,71,69,122,98,151,147,170,175,345,383,360,372,365,350,1039,1029,1004,992,985,598,2032,2000,1687,1504]} 1. Nf3 {[%emt 0:00:45]} Nf6 {[%emt 0:00:18]} 2. g3 {[%emt 0:00:08]} d5 {[%emt 0:00:17]} 3. Bg2 {[%emt 0:00:06]} e6 {[%emt 0:00:21]} 4. O-O {[%emt 0:00:10]} Bd6 {[%emt 0:00:25]} 5. c4 {[%emt 0:00:12]} O-O {[%emt 0:00:20]} 6. Nc3 {[%emt 0:00:06]} Nc6 {[%emt 0:01:09]} 7. d3 {[%emt 0:02:06]} h6 {[%emt 0:06:59]} 8. a3 {[%emt 0:00:21]} a5 {[%emt 0:03:48]} 9. Rb1 {[%emt 0:01:35]} Re8 {[%emt 0:07:35]} 10. Qc2 {[%emt 0:02:48]} d4 {[%emt 0:05:20]} 11. Nb5 {[%emt 0:00:04]} Bf8 {[%emt 0:01:03]} 12. e3 {[%emt 0:00:48]} dxe3 {[%emt 0:10:31]} 13. Bxe3 {[%emt 0:00:37]} e5 {[%emt 0:01:29]} 14. d4 {[%emt 0:03:36]} exd4 {[%emt 0:01:04]} 15. Rbd1 {[%emt 0:14:40][%cal Rf3d4]} Bg4 {[%emt 0:05:03]} 16. Bf4 {[%emt 0:03:27]} Rc8 {[%emt 0:08:16]} 17. Nbxd4 {[%emt 0:00:54]} Nxd4 {[%emt 0:00:23]} 18. Rxd4 {[%emt 0:00:06]} Qe7 $1 {[%emt 0:00:43]} 19. h3 {[%emt 0:01:50]} Bxf3 {[%emt 0:03:28]} (19... Bh5 $11) 20. Bxf3 $14 {[%emt 0:00:05]} b6 {[%emt 0:01:59]} 21. Rfd1 {[%emt 0:00:58] White is much more active. Black is weak on the light squares} g5 {[%emt 0:06:42]} 22. Bc1 {[%emt 0:00:21]} Qe6 {[%emt 0:00:26]} ({Black should try} 22... Rcd8 $14) 23. Kg2 $16 {[%emt 0:00:57]} Bd6 {[%emt 0:05:20] [#]} (23... Qe7 $142 24. Bd2 c5) 24. R4d2 $1 {[%emt 0:05:24][%cal Ob2b4]} Be5 {[%emt 0:09:38]} 25. Re2 {[%emt 0:00:49] Threatens to win with b4.} c5 $2 {[%emt 0:02:29]} (25... Rcd8) 26. Rde1 $18 {[%emt 0:00:13]} Qd6 {[%emt 0:01:31]} 27. Qf5 {[%emt 0:01:40]} Bd4 {[%emt 0:01:13]} 28. h4 {[%emt 0:00:40]} Qf8 $2 {[%emt 0:05:41]} (28... Rcd8 29. hxg5 Rxe2 30. Rxe2 Qd7) 29. hxg5 {[%emt 0:00:17]} hxg5 {[%emt 0:01:00]} 30. Bxg5 {[%emt 0:00:03]} Nh7 {[%emt 0:00:51] [#]} 31. Bh6 $1 {[%emt 0:01:42][%mdl 512] A strong pair of Bishops.} Bg7 {[%emt 0:00:44]} (31... Rxe2 32. Rxe2) 32. Bxg7 {[%emt 0:00:12]} Kxg7 {[%emt 0:00:08]} 33. Be4 {[%emt 0:00:04]} 1-0